Cogmind - Beta 14 @@@ ROGUE MODE // 2025.01.11 @ 22:19:33 Player: Mathewnd Result: Destroyed by P-70 Sage with Tesla Rifle Performance ------------- Evolutions (6) 3000 Regions Visited (21) 4200 Robots Destroyed (191) 955 Value Destroyed (7628) 7628 Prototype IDs (34) 680 Alien Tech Used (0) 0 Bonus (2718) 2718 TOTAL SCORE: 19181 Bonus ------- High Alert Combat Kills 244 Follower Combat Kills 1174 Network Hubs Disabled 200 Met Data Miner 300 Built Enhanced Grunts 300 Met R17 at Cetus 500 Cogmind --------- Core Integrity 0/1150 Matter 193/300 Energy 98/100 System Corruption 12% Temperature Cool (0) Movement Core (50) Location -4/Upper Caves Parts ------- > --- POWER (2) -------- (None) > --- PROPULSION (6) --- (None) > --- UTILITY (8) ------ (None) > --- WEAPON (3) ------- (None) > --- INVENTORY (5) ---- Quantum Reactor Quantum Reactor HERF Cannon HERF Cannon Heavy Phase Cannon Peak State ------------ > --- POWER ------------ Quantum Reactor Quantum Reactor > --- PROPULSION ------- Light Treads Medium Treads Medium Treads Medium Treads Improved Medium Treads Improved Medium Treads > --- UTILITY ---------- Advanced Heat Sink Huge Storage Unit Long-range Sensor Array Advanced Signal Interpreter 0b10 Decoder Chip [Scout] Armor Integrity Analyzer Centrium Medium Armor Plating Centrium Medium Armor Plating > --- WEAPON ----------- Advanced Variable Charge Gun Cooled Particle Cannon Cooled Plasma Cannon > --- INVENTORY -------- Quantum Reactor Quantum Reactor Quantum Reactor Wheel High-capacity Storage Unit Compact Battery Improved Sensor Array Improved Sensor Array Advanced Terrain Scan Processor Core Analyzer Centrium Medium Armor Plating Centrium Medium Armor Plating Point Defense System Hacking Drone Bay Advanced Variable Charge Gun HERF Cannon HERF Cannon Cooled Particle Cannon Cooled Particle Cannon Advanced KE Penetrator Rocket Launcher Heavy Rocket Launcher Heavy Rocket Launcher Self-destruct Interrupter GAL Module [Rating: 119] Favorites ----------- Power Cold Fusion Reactor Engine Improved Deuterium Engine Power Core Micro Fission Core Reactor Cold Fusion Reactor Propulsion Light Treads Treads Light Treads Leg Flexi-carbon Leg Wheel Wheel Utility High-capacity Storage Unit Device Improved Sensor Array Storage High-capacity Storage Unit Processor Advanced Signal Interpreter Protection Centrium Medium Armor Plating Weapon Cooled Particle Cannon Energy Gun Advanced Variable Charge Gun Energy Cannon Cooled Particle Cannon Ballistic Gun Light Assault Rifle Launcher Heavy Rocket Launcher Build | -11 -10 -9 -8 -7 -7 -7 -7 -6 -6 -6 -6 -6 -5 -5 -5 -5 -5 -5 -4 -4 -4 ------- Run | Yrd Mat Mat Mat Fac Low Low Dat Pro Fac Low Low Zio Pro Fac Ext Cet Arc Hub Fac Upp Upp Slots Evolved 12 | . . 2 2 2 . . . . 2 . . . . 2 . . . . 2 . . Power 1 | . . . . . . . . . . . . . . 1 . . . . . . . Propulsion 4 | . . 1 1 1 . . . . 1 . . . . . . . . . . . . Utility 6 | . . 1 1 1 . . . . 1 . . . . 1 . . . . 1 . . Weapon 1 | . . . . . . . . . . . . . . . . . . . 1 . . Parts Attached 174 | 5 3 17 4 13 . 3 . 8 37 5 4 7 4 8 11 11 3 1 16 14 . Power 20 | . 1 2 . 2 . . . . 5 . . . . 1 2 6 . . 1 . . Engine 10 | . 1 2 . 1 . . . . 2 . . . . 1 1 2 . . . . . Core 3 | . . . . 1 . . . . 2 . . . . . . . . . . . . Reactor 7 | . . . . . . . . . 1 . . . . . 1 4 . . 1 . . Propulsion 49 | 2 . 6 3 3 . . . 1 13 2 2 . 1 . 4 3 3 . 6 . . Treads 38 | 2 . 6 3 3 . . . 1 8 2 1 . 1 . 4 3 3 . 1 . . Leg 2 | . . . . . . . . . . . . . . . . . . . 2 . . Wheel 9 | . . . . . . . . . 5 . 1 . . . . . . . 3 . . Hover . | . . . . . . . . . . . . . . . . . . . . . . Flight . | . . . . . . . . . . . . . . . . . . . . . . Utility 59 | 1 2 3 1 5 . . . 2 13 1 2 6 . 6 5 2 . . 7 3 . Device 32 | . 1 2 1 3 . . . 2 8 . 1 4 . 4 3 . . . 2 1 . Storage 5 | 1 1 1 . . . . . . 1 . . . . . 1 . . . . . . Processor 9 | . . . . 1 . . . . 2 . 1 2 . . . . . . 2 1 . Hackware . | . . . . . . . . . . . . . . . . . . . . . . Protection 13 | . . . . 1 . . . . 2 1 . . . 2 1 2 . . 3 1 . Artifact . | . . . . . . . . . . . . . . . . . . . . . . Weapon 46 | 2 . 6 . 3 . 3 . 5 6 2 . 1 3 1 . . . 1 2 11 . Energy Gun 5 | . . 3 . . . . . . . . . . . . . . . 1 . 1 . Energy Cannon 24 | . . 2 . 3 . 2 . 2 5 2 . . 2 1 . . . . 2 3 . Ballistic Gun 4 | 2 . 1 . . . . . . . . . . . . . . . . . 1 . Ballistic Cannon . | . . . . . . . . . . . . . . . . . . . . . . Launcher 13 | . . . . . . 1 . 3 1 . . 1 1 . . . . . . 6 . Special Weapon . | . . . . . . . . . . . . . . . . . . . . . . Impact Weapon . | . . . . . . . . . . . . . . . . . . . . . . Slashing Weapon . | . . . . . . . . . . . . . . . . . . . . . . Piercing Weapon . | . . . . . . . . . . . . . . . . . . . . . . Special Melee Weapon . | . . . . . . . . . . . . . . . . . . . . . . Unidentified Prototypes 14 | . . 4 . 1 . . . . 2 . . 1 . 2 . 1 . 1 1 1 . Corrupted Parts 1 | . . . . . . . . . . . . . . . . . . 1 . . . System Corruption 9 | . . . . . . . . . . . . . . . . . . 9 . . . Parts Lost 64 | . . 2 2 . . . . 3 17 2 1 . 1 . 7 3 . . 9 16 1 Power 5 | . . 1 . . . . . . 1 . . . . . 1 . . . . 2 . Propulsion 30 | . . 1 . . . . . 1 11 . 1 . . . 2 2 . . 8 4 . Utility 18 | . . . 2 . . . . 2 4 1 . . . . 4 1 . . . 3 1 Weapon 11 | . . . . . . . . . 1 1 . . 1 . . . . . 1 7 . Highest Loss Streak 12 | . . 1 2 . . . . 2 6 1 1 . 1 . 3 2 . . 2 12 1 To Critical Strikes . | . . . . . . . . . . . . . . . . . . . . . . Average Slot Usage (%) 85 | . 87 98 80 96 100 100 100 98 68 63 75 85 90 86 92 96 100 100 94 53 2 Engine 3 | . 13 10 9 6 7 7 7 7 3 . . . . 2 2 3 . . . . . Reactor 4 | . . . . . . . . . 2 6 6 6 6 5 7 6 11 11 10 2 . Treads 23 | . 28 32 34 38 38 38 38 38 12 6 13 20 23 23 27 32 35 35 20 . . Wheel 2 | . . . . . . . . . 7 6 5 6 6 5 . . . . 2 2 . Device 12 | . 3 21 10 14 15 15 15 13 12 13 13 12 13 17 16 11 11 11 7 4 . Storage 6 | . 14 11 9 7 7 7 7 7 6 6 6 6 6 5 5 5 5 5 5 4 . Processor 8 | . . . . 7 7 7 7 7 5 6 8 13 13 11 11 11 11 11 15 13 2 Protection 5 | . . . . 4 7 7 7 6 2 3 6 6 6 4 5 10 11 11 12 7 . Energy Gun 1 | . . 3 . . . . . . . . . . . . . . . . 5 7 . Energy Cannon 10 | . . 6 18 15 15 12 15 13 12 13 13 10 12 7 11 11 11 10 9 3 . Ballistic Gun 1 | . 28 11 . . . . . . . . . . . . . . . . . 1 . Peak Build Rating 119 | 5 8 24 26 50 50 50 50 52 54 50 53 59 58 65 76 95 101 104 119 109 7 Average Rating 56 | 4 6 16 24 41 50 49 50 49 42 45 46 52 55 59 67 82 100 101 113 68 4 On Entrance 50 | . 5 8 24 26 50 50 50 50 43 50 45 53 52 52 65 71 95 101 104 109 7 Naked Turns 100 | . . . . . . . . . . . . . . . . . . . . 78 22 Heaviest Build 161 | 8 27 61 63 77 75 75 75 81 90 90 91 90 90 91 133 156 151 151 161 161 . Greatest Support 164 | 40 40 66 86 114 114 114 114 120 148 16 40 10 10 22 146 146 159 159 164 20 3 Greatest Overweight (x) 34 | . . . . . . . . . 8 5 9 8 8 9 9 1 1 . 16 34 . Average Overweight (x) 2 | . . . . . . . . . 2 4 6 8 8 7 1 . . . 3 5 . Largest Inventory Capacity 25 | 8 15 20 20 20 20 20 20 20 20 20 20 20 20 20 25 25 25 25 25 25 5 Average Capacity 20 | 7 14 16 20 20 20 20 20 20 20 20 20 20 20 20 20 25 25 25 25 22 5 Most Carried 25 | 7 12 20 20 20 20 20 20 20 20 20 20 20 20 20 20 25 25 25 25 24 5 Average Carried 19 | 4 7 16 19 19 20 20 20 19 16 19 19 19 20 19 19 23 25 25 23 19 5 Final Capacity 25 | 8 15 20 20 20 20 20 20 20 20 20 20 20 20 20 25 25 25 25 25 5 5 Final Carried 25 | 7 12 20 20 20 20 20 20 19 20 19 20 20 20 20 19 25 25 25 24 5 5 Class Distribution -------------------- 49% | Scavenger-Mutant 36% | Mutant 9% | Scavenger-Tank 4% | Scavenger-Gunner Dominant Class ---------------- Mutant | -10/Materials Mutant | -9/Materials Mutant | -8/Materials Mutant | -7/Factory Mutant | -7/Lower Caves Mutant | -7/Lower Caves Mutant | -7/Data Miner Mutant | -6/Proximity Caves Scavenger-Mutant | -6/Factory Mutant | -6/Lower Caves Scavenger-Mutant | -6/Lower Caves Scavenger-Mutant | -6/Zion Scavenger-Mutant | -5/Proximity Caves Scavenger-Mutant | -5/Factory Scavenger-Mutant | -5/Extension Scavenger-Mutant | -5/Cetus Scavenger-Mutant | -5/Archives Scavenger-Mutant | -5/Hub_04(d) Scavenger-Tank | -4/Factory Scavenger-Gunner | -4/Upper Caves Mutant | -4/Upper Caves Resources | -11 -10 -9 -8 -7 -7 -7 -7 -6 -6 -6 -6 -6 -5 -5 -5 -5 -5 -5 -4 -4 -4 ----------- Run | Yrd Mat Mat Mat Fac Low Low Dat Pro Fac Low Low Zio Pro Fac Ext Cet Arc Hub Fac Upp Upp Matter Collected 2837 | 241 91 352 30 125 . 72 . 61 624 90 78 70 110 80 127 66 74 42 160 344 . Remotely 19 | . . . . . . . . . . . 19 . . . . . . . . . . Salvage Created 8894 | . 163 994 284 492 . 91 . 313 2181 313 308 . 125 36 1842 214 . 369 972 197 . Parts 408 | . 16 70 11 27 . 8 . 20 85 16 8 . 13 3 59 7 . 17 36 12 . Haulers Intercepted 10 | . 1 4 1 1 . . . . 2 . . . . . . . . . 1 . . Recyclers Shooed 10 | . . . . . . . . . 7 . . . . . 2 . . . 1 . . Parts Field Recycled . | . . . . . . . . . . . . . . . . . . . . . . Retrieved Matter . | . . . . . . . . . . . . . . . . . . . . . . Parts Self-Destructed 60 | . . . . . 2 8 . 14 . 13 4 1 8 . . . . . . 10 . Prevented 4 | . . . . . 1 . . . . 1 . . 2 . . . . . . . . Kills | -11 -10 -9 -8 -7 -7 -7 -7 -6 -6 -6 -6 -6 -5 -5 -5 -5 -5 -5 -4 -4 -4 ------- Run | Yrd Mat Mat Mat Fac Low Low Dat Pro Fac Low Low Zio Pro Fac Ext Cet Arc Hub Fac Upp Upp Combat Hostiles Destroyed 139 | . 2 19 4 6 . 4 . 9 30 5 1 . 8 . 24 3 . 4 13 7 . Melee 1 | . . . . 1 . . . . . . . . . . . . . . . . . Guns 22 | . 2 14 . . . . . . . . . . . . . . . . 6 . . Cannons 77 | . . 5 4 5 . 1 . 3 22 5 1 . . . 21 2 . 2 4 2 . AOE 25 | . . . . . . 3 . 4 5 . . . 8 . . . . . . 5 . Classes Destroyed 18 | . 3 4 1 2 . 1 . 1 3 1 . . . . 1 . . 1 . . . Worker 9 | . . 1 1 2 . . . . 1 . . . . . . . . 2 2 . . Builder 6 | . . . . . . . . 1 1 . . . . . . . . 4 . . . Tunneler 1 | . . . . . . . . . 1 . . . . . . . . . . . . Hauler 10 | . 1 4 1 1 . . . . 2 . . . . . . . . . 1 . . Recycler 6 | . . . . 1 . . . . 4 . . . . . 1 . . . . . . Minesweeper 1 | . . . . . . . . . . 1 . . . . . . . . . . . Operator 2 | . . . . . . . . . . . . . . . . . . 1 1 . . Watcher 17 | . 1 3 . 2 . . . 2 4 . . . . 1 2 1 . . 1 . . Swarmer 28 | . . 6 . . . 3 . . 4 3 . . 8 . . . . . . 4 . Cutter 3 | . . . . . . . . . 3 . . . . . . . . . . . . Grunt 50 | . 2 7 3 4 . . . 3 13 . . . . . 13 1 . 3 1 . . Brawler 3 | . . 1 . . . . . . 1 . . . . . 1 . . . . . . Duelist 2 | . . . . . . . . . 1 . . . . . . . . . 1 . . Sentry 19 | . . 5 . 1 . . . 4 2 1 1 . . . 4 . . 1 . . . Hunter 10 | . . . 1 . . . . 2 3 . . . . . 2 . . . 2 . . Programmer 18 | . . . . 1 . 1 . . 3 1 . . . . 1 . . . 9 2 . Behemoth 2 | . . . . . . . . . . . . . . . 1 . . . . 1 . Cetus Guard 2 | . . . . . . . . . . . . . . . . 2 . . . . . Decomposer 4 | . . . . . . . . . . . 2 . . . . . . . . 2 . Samaritan 7 | . . . . . . 1 . . . 2 3 . 1 . . . . . . . . Butcher 1 | . . . . . . . . . . . . . . . 1 . . . . . . Guerrilla 1 | . . . . . . . . . . . . . . . 1 . . . . . . Best Kill Streak 8 | . 2 4 2 2 . 3 . 7 8 3 1 . 5 1 3 2 . 8 3 4 . Combat Bots Only 5 | . 2 4 2 2 . 3 . 4 5 3 1 . 5 . 3 1 . 2 2 4 . Max Kills in Single Turn 7 | . 1 1 1 2 . 2 . 1 7 1 1 . 4 1 1 1 . 5 1 3 . Gunslinging . | . . . . . . . . . . . . . . . . . . . . . . Exploded 5 | . . . . . . 2 . 1 5 . . . 4 . . . . . . 3 . Melee 1 | . . . . 1 . . . . . . . . . . . . . . . . . Uniques/NPCs Destroyed . | . . . . . . . . . . . . . . . . . . . . . . Combat | -11 -10 -9 -8 -7 -7 -7 -7 -6 -6 -6 -6 -6 -5 -5 -5 -5 -5 -5 -4 -4 -4 -------- Run | Yrd Mat Mat Mat Fac Low Low Dat Pro Fac Low Low Zio Pro Fac Ext Cet Arc Hub Fac Upp Upp Hostile Shots Fired 1252 | . 14 86 47 44 3 15 . 115 291 43 27 . 38 . 112 55 1 19 142 176 24 Missed 416 | . 4 28 12 14 1 10 . 40 89 10 11 . 16 . 38 22 . 6 39 65 11 Damage Taken 14061 | . 110 747 499 294 39 79 . 700 3418 343 128 . 235 . 1387 667 49 353 2144 2585 284 Core 2134 | . 10 111 59 13 . 15 . 82 418 49 27 . 10 . 75 93 . . 160 728 284 Absorbed by Shields 390 | . . . . 64 . . . 37 36 . . . . . 174 79 . . . . . Ignored by Resistances 257 | . . . . . . . . . . . 14 . 71 . 19 153 . . . . . Regen/Repaired (Parts) 523 | . . . . 24 . . . . . . . 499 . . . . . . . . . Core Remaining (%) 80 | 100 96 72 89 . . . . 84 . . . . 40 . . . . 83 . . . Volleys Fired 573 | . 13 72 23 19 . 8 . 29 129 16 18 1 14 1 90 28 3 17 54 38 . Largest 3 | . 2 2 2 2 . 2 . 2 2 2 2 2 2 2 2 2 2 2 3 3 . Hottest 195 | . 40 136 136 136 . 69 . 78 70 70 70 70 70 65 65 65 65 65 145 195 . Shots Fired 1181 | . 26 143 46 38 . 14 . 58 241 32 36 2 22 2 180 56 6 34 156 89 . Gun 216 | . 26 114 . . . . . . . . . . . . . . . . 50 26 . Cannon 917 | . . 29 46 38 . 11 . 42 240 32 36 2 17 2 180 56 6 34 106 40 . Launcher 48 | . . . . . . 3 . 16 1 . . . 5 . . . . . . 23 . Special . | . . . . . . . . . . . . . . . . . . . . . . Kinetic 124 | . 26 96 . . . . . . . . . . . . . . . . . 2 . Thermal 1009 | . . 47 46 38 . 11 . 42 240 32 36 2 17 2 180 56 6 34 156 64 . Explosive 48 | . . . . . . 3 . 16 1 . . . 5 . . . . . . 23 . Electromagnetic . | . . . . . . . . . . . . . . . . . . . . . . Robot Hit Streak 29 | . 10 14 5 7 . 5 . 9 12 9 11 . 2 2 29 6 6 11 15 5 . Robot Miss Streak 5 | . 4 4 5 1 . 1 . 2 4 1 2 . 4 . 3 5 . 2 4 4 . Penetration Max . | . . . . . . . . . . . . . . . . . . . . . . Secondary Targets . | . . . . . . . . . . . . . . . . . . . . . . Shots Hit Robots 669 | . 17 89 26 24 . 5 . 17 157 24 21 . 6 1 120 29 6 17 92 18 . Core Hits 326 | . 7 42 12 16 . 5 . 26 69 8 5 . 12 1 43 15 3 13 32 17 . Critical Kills 10 | . . . . . . . . 1 3 1 1 . . . 1 1 . 1 1 . . Critical Parts Destroyed 1 | . 1 . . . . . . . . . . . . . . . . . . . . Critical Strikes 13 | . 1 2 . . . . . 1 3 1 1 . . . 1 1 . 1 1 . . Burn 2 | . . 2 . . . . . . . . . . . . . . . . . . . Meltdown 10 | . . . . . . . . 1 3 1 1 . . . 1 1 . 1 1 . . Destroy 1 | . 1 . . . . . . . . . . . . . . . . . . . . Melee Attacks . | . . . . . . . . . . . . . . . . . . . . . . Impact . | . . . . . . . . . . . . . . . . . . . . . . Slashing . | . . . . . . . . . . . . . . . . . . . . . . Piercing . | . . . . . . . . . . . . . . . . . . . . . . Sneak Attacks . | . . . . . . . . . . . . . . . . . . . . . . Combat Hostiles . | . . . . . . . . . . . . . . . . . . . . . . Follow-up Attacks . | . . . . . . . . . . . . . . . . . . . . . . Damage Inflicted 24053 | . 182 1120 555 681 . 458 . 1336 6327 783 667 . 884 39 3987 1000 177 1065 3036 1756 . Guns 2481 | . 182 813 . . . . . . . . . . . . . . . . 1321 165 . Cannons 16493 | . . 307 555 666 . 88 . 519 4982 783 667 . 162 39 3980 1000 177 561 1700 307 . Explosions 5024 | . . . . . . 370 . 817 1327 . . . 722 . . . . 504 . 1284 . Melee . | . . . . . . . . . . . . . . . . . . . . . . Ramming 55 | . . . . 15 . . . . 18 . . . . . 7 . . . 15 . . Kinetic 840 | . 182 658 . . . . . . . . . . . . . . . . . . . Thermal 19329 | . . 462 555 666 . 88 . 519 6177 783 667 . 162 39 3980 1000 177 561 3021 472 . Explosive 3325 | . . . . . . 370 . 817 132 . . . 722 . . . . . . 1284 . Electromagnetic 504 | . . . . . . . . . . . . . . . . . . 504 . . . Impact . | . . . . . . . . . . . . . . . . . . . . . . Slashing . | . . . . . . . . . . . . . . . . . . . . . . Piercing . | . . . . . . . . . . . . . . . . . . . . . . Highest Corruption 14 | . . . . . . . . . 5 5 5 5 . . 3 3 3 14 8 10 11 Average Corruption 5 | . . . . . . . . . 4 5 5 5 . . 2 3 3 3 4 9 10 Corruption Purged . | . . . . . . . . . . . . . . . . . . . . . . Corruption Blocked . | . . . . . . . . . . . . . . . . . . . . . . Effects 202 | . . . . . . . . . 48 15 20 1 . . 13 8 7 5 24 60 1 Message Errors 42 | . . . . . . . . . 8 1 5 . . . 4 2 1 . 4 16 1 Matter Fused 46 | . . . . . . . . . 13 4 5 . . . 4 1 2 4 7 6 . Heat Flow Errors 20 | . . . . . . . . . 3 2 3 1 . . 1 2 . . 2 6 . Energy Discharges 29 | . . . . . . . . . 4 4 1 . . . 2 2 1 . 3 12 . Parts Rejected 3 | . . . . . . . . . 1 . . . . . . . . . . 2 . Parts Fused 2 | . . . . . . . . . 2 . . . . . . . . . . . . Data Loss (minor) 29 | . . . . . . . . . 7 4 3 . . . 1 1 2 1 3 7 . Data Loss (major) 8 | . . . . . . . . . 2 . . . . . 1 . 1 . 1 3 . Misfires 8 | . . . . . . . . . 5 . . . . . . . . . 1 2 . Alerts 9 | . . . . . . . . . 2 . 3 . . . . . . . 1 3 . Misdirections 3 | . . . . . . . . . . . . . . . . . . . . 3 . Weapon Failures 3 | . . . . . . . . . 1 . . . . . . . . . 2 . . Overload Shots . | . . . . . . . . . . . . . . . . . . . . . . Overflow Damage 942 | . . . . . . 14 . 32 347 68 132 . 66 . 128 13 . 14 88 40 . Projectiles 669 | . . . . . . . . 15 136 68 132 . 58 . 128 13 . 11 88 20 . Explosions 273 | . . . . . . 14 . 17 211 . . . 8 . . . . 3 . 20 . Melee . | . . . . . . . . . . . . . . . . . . . . . . Knockbacks . | . . . . . . . . . . . . . . . . . . . . . . Impact . | . . . . . . . . . . . . . . . . . . . . . . Kinetic . | . . . . . . . . . . . . . . . . . . . . . . Secondary . | . . . . . . . . . . . . . . . . . . . . . . Self-Inflicted Damage 207 | . . . . . . . . 15 8 . . . 52 . . . . 98 . 34 . Shots 5 | . . . . . . . . 1 . . . . 1 . . . . 1 . 2 . Rammed 7 | . . . . 1 . . . . 3 . . . . . 2 . . . 1 . . Targets Rammed 9 | . . . . 3 . . . . 3 . . . . . 2 . . . 1 . . Kicked . | . . . . . . . . . . . . . . . . . . . . . . Crushed 2 | . . . . 2 . . . . . . . . . . . . . . . . . Highest Temperature 432 | . 12 . 417 298 . . . 30 141 241 223 130 296 . 257 160 . 13 216 432 . Average Temperature 85 | . 8 . 132 109 . . . 8 49 115 94 84 158 . 76 67 . 13 64 94 . Received Heat Transfer 3830 | . 63 219 207 136 18 9 . 248 799 42 54 . 342 . 494 155 9 117 181 728 9 Effects 4 | . . . 1 . . . . . . . . . 1 . . . . . . 2 . Shutdowns 2 | . . . . . . . . . . . . . . . . . . . . 2 . Energy Bleed 2 | . . . 1 . . . . . . . . . 1 . . . . . . . . Siege Activations . | . . . . . . . . . . . . . . . . . . . . . . Robots Corrupted . | . . . . . . . . . . . . . . . . . . . . . . Combat Hostiles . | . . . . . . . . . . . . . . . . . . . . . . Parts Fried 1 | . . . . . . . . . . . . . . . 1 . . . . . . Impact Corruptions . | . . . . . . . . . . . . . . . . . . . . . . Robots Melted 16 | . . . . . . . . 1 4 1 1 . . . 3 1 . 2 3 . . Combat Hostiles 13 | . . . . . . . . 1 3 . . . . . 3 1 . 2 3 . . Parts Melted 69 | . . 3 2 2 . . . 1 20 4 1 . 1 . 14 2 . 1 15 3 . Heat Transferred 25946 | . . 1036 999 962 . 111 . 629 7720 1174 1050 . 250 50 5244 1466 261 820 3582 592 . Parts Sabotaged . | . . . . . . . . . . . . . . . . . . . . . . Parts Stolen . | . . . . . . . . . . . . . . . . . . . . . . Parts Stripped . | . . . . . . . . . . . . . . . . . . . . . . Power Chain Reactions . | . . . . . . . . . . . . . . . . . . . . . . Alert | -11 -10 -9 -8 -7 -7 -7 -7 -6 -6 -6 -6 -6 -5 -5 -5 -5 -5 -5 -4 -4 -4 ------- Run | Yrd Mat Mat Mat Fac Low Low Dat Pro Fac Low Low Zio Pro Fac Ext Cet Arc Hub Fac Upp Upp Peak Influence 812 | . 94 359 244 234 . . . . 812 . . . . 24 502 398 216 497 242 . . Initial 255 | . . 39 151 110 . . . . 28 . . . . . 11 255 128 5 242 . . Average 225 | . 24 178 191 112 . . . . 370 . . . . 9 280 319 197 65 117 . . Maximum Alert Level 3 | . . 1 1 1 . . . . 3 . . . . . 2 1 1 2 1 . . Low Security (%) 51 | 100 100 46 78 98 . . . . 34 . . . . 100 28 3 15 97 85 . . Level 1 31 | . . 53 21 1 . . . . 25 . . . . . 39 96 84 . 14 . . Level 2 10 | . . . . . . . . . 12 . . . . . 31 . . 2 . . . Level 3 5 | . . . . . . . . . 27 . . . . . . . . . . . . Level 4 . | . . . . . . . . . . . . . . . . . . . . . . Level 5 . | . . . . . . . . . . . . . . . . . . . . . . High Security . | . . . . . . . . . . . . . . . . . . . . . . Max Security . | . . . . . . . . . . . . . . . . . . . . . . Squads Dispatched 24 | . 1 2 2 2 . . . . 6 . . . . . 5 1 . 1 4 . . Investigation 5 | . . 1 1 . . . . . 1 . . . . . 1 1 . . . . . Extermination 7 | . . . . 1 . . . . 2 . . . . . . . . . 4 . . Reinforcement 12 | . 1 1 1 1 . . . . 3 . . . . . 4 . . 1 . . . Assault . | . . . . . . . . . . . . . . . . . . . . . . Garrison . | . . . . . . . . . . . . . . . . . . . . . . Intercept . | . . . . . . . . . . . . . . . . . . . . . . Searches Triggered . | . . . . . . . . . . . . . . . . . . . . . . Data Miner Redirects 3 | . . . . . . . . . 1 . . . . . 1 1 . . . . . Construction Impeded 2 | . . . . . . . . . . . . . . . 2 . . . . . . Haulers Reinforced 1 | . . . . . . . . . 1 . . . . . . . . . . . . Active Scanning Responses . | . . . . . . . . . . . . . . . . . . . . . . Cargo Convoy Interrupts . | . . . . . . . . . . . . . . . . . . . . . . Stealth | -11 -10 -9 -8 -7 -7 -7 -7 -6 -6 -6 -6 -6 -5 -5 -5 -5 -5 -5 -4 -4 -4 --------- Run | Yrd Mat Mat Mat Fac Low Low Dat Pro Fac Low Low Zio Pro Fac Ext Cet Arc Hub Fac Upp Upp Distress Signals 15 | . 1 3 1 . . . . 3 2 . . . . . 2 2 . 1 . . . Communications Jammed . | . . . . . . . . . . . . . . . . . . . . . . Distress Signals . | . . . . . . . . . . . . . . . . . . . . . . Times Spotted 263 | . 5 30 8 11 1 7 . 20 47 5 1 . 6 1 42 14 4 7 21 27 6 Peak Tracking Total 11 | . 3 7 3 5 2 3 . 4 4 3 1 . 4 1 7 5 1 4 4 11 8 Tactical Retreats 31 | . . 1 . 2 1 . . 4 7 . . . 2 . 5 . . . 2 7 . Traps | -11 -10 -9 -8 -7 -7 -7 -7 -6 -6 -6 -6 -6 -5 -5 -5 -5 -5 -5 -4 -4 -4 ------- Run | Yrd Mat Mat Mat Fac Low Low Dat Pro Fac Low Low Zio Pro Fac Ext Cet Arc Hub Fac Upp Upp Traps Triggered 3 | . . 1 . . . . . . 2 . . . . . . . . . . . . Indirectly . | . . . . . . . . . . . . . . . . . . . . . . Trap Hack Attempts . | . . . . . . . . . . . . . . . . . . . . . . Triggered . | . . . . . . . . . . . . . . . . . . . . . . Disarmed . | . . . . . . . . . . . . . . . . . . . . . . Reprogrammed 4 | . . . . . . . . . . . . . . . 4 . . . . . . Reused 3 | . . . . . . . . . . . . . . . 3 . . . . . . Traps Extracted . | . . . . . . . . . . . . . . . . . . . . . . Installed 13 | . . . . . . . . . . 12 . . . . . . . . . 1 . Triggered 6 | . . . . . 1 . . . . 1 . . 1 . 3 . . . . . . Machines | -11 -10 -9 -8 -7 -7 -7 -7 -6 -6 -6 -6 -6 -5 -5 -5 -5 -5 -5 -4 -4 -4 ---------- Run | Yrd Mat Mat Mat Fac Low Low Dat Pro Fac Low Low Zio Pro Fac Ext Cet Arc Hub Fac Upp Upp Machines Disabled 21 | . . . . . . . . . 5 . . . . . 4 . 1 8 3 . . Max in Single Turn 6 | . . . . . . . . . 5 . . . . . 1 . . 6 1 . . Garrison Access 2 | . . . . . . . . . 2 . . . . . . . . . . . . Network Hub 1 | . . . . . . . . . . . . . . . . . . 1 . . . Machines Repaired . | . . . . . . . . . . . . . . . . . . . . . . Machines Dismantled . | . . . . . . . . . . . . . . . . . . . . . . Machines Sabotaged . | . . . . . . . . . . . . . . . . . . . . . . Overloaded Fab Kills . | . . . . . . . . . . . . . . . . . . . . . . Hacking | -11 -10 -9 -8 -7 -7 -7 -7 -6 -6 -6 -6 -6 -5 -5 -5 -5 -5 -5 -4 -4 -4 --------- Run | Yrd Mat Mat Mat Fac Low Low Dat Pro Fac Low Low Zio Pro Fac Ext Cet Arc Hub Fac Upp Upp Machines Accessed 50 | . 1 7 1 5 . 2 4 1 10 . . . 1 1 5 1 1 3 6 1 . Terminals 30 | . 1 5 1 4 . . . 1 3 . . . 1 . 5 1 . 3 5 . . Fabricators 4 | . . . . . . . . . 2 . . . . 1 . . . . 1 . . Repair Stations 4 | . . . . 1 . . . . 3 . . . . . . . . . . . . Recycling Units 1 | . . 1 . . . . . . . . . . . . . . . . . . . Scanalyzers 1 | . . 1 . . . . . . . . . . . . . . . . . . . Garrison Access 2 | . . . . . . . . . 2 . . . . . . . . . . . . Total Hacks 167 | . 2 21 4 8 . 2 30 2 20 . . . 1 2 20 3 25 7 19 1 . Successful 103 | . . 11 . 4 . 2 30 1 9 . . . 1 . 10 . 25 1 8 1 . Failed 64 | . 2 10 4 4 . . . 1 11 . . . . 2 10 3 . 6 11 . . Catastrophic 12 | . . 2 2 1 . . . . 2 . . . . . . . . . 5 . . Database Lockouts . | . . . . . . . . . . . . . . . . . . . . . . Manual 31 | . . . . 3 . . . . 3 . . . . 1 10 1 . 5 8 . . Terminals 83 | . 2 14 4 6 . . . 2 7 . . . 1 . 20 3 . 7 17 . . Fabricators 7 | . . . . . . . . . 3 . . . . 2 . . . . 2 . . Repair Stations 9 | . . . . 2 . . . . 7 . . . . . . . . . . . . Recycling Units 3 | . . 3 . . . . . . . . . . . . . . . . . . . Scanalyzers 4 | . . 4 . . . . . . . . . . . . . . . . . . . Garrison Access 3 | . . . . . . . . . 3 . . . . . . . . . . . . Terminal Hacks 84 | . . 7 . 1 . 2 30 1 3 . . . 1 . 7 . 25 . 6 1 . Record 39 | . . 1 . . . 1 11 . . . . . 1 . . . 25 . . . . Part Schematic 10 | . . . . . . . 10 . . . . . . . . . . . . . . Robot Schematic 6 | . . . . . . . 6 . . . . . . . . . . . . . . Prototype ID Bank 8 | . . 1 . . . . 3 . 1 . . . . . 2 . . . 1 . . Open Door 3 | . . . . . . 1 . 1 . . . . . . . . . . . 1 . Branch Access Points 3 | . . . . 1 . . . . 1 . . . . . . . . . 1 . . Emergency Access Points 2 | . . 2 . . . . . . . . . . . . . . . . . . . Terminal Index 1 | . . 1 . . . . . . . . . . . . . . . . . . . Alert Level 3 | . . . . . . . . . . . . . . . 2 . . . 1 . . Unreport Threat 1 | . . . . . . . . . . . . . . . . . . . 1 . . Locate Traps 1 | . . . . . . . . . . . . . . . 1 . . . . . . Reprogram Traps 1 | . . . . . . . . . . . . . . . 1 . . . . . . Hauler Manifests 1 | . . . . . . . . . . . . . . . . . . . 1 . . Registered Prototypes 1 | . . . . . . . . . . . . . . . . . . . 1 . . Zone Layout 4 | . . 2 . . . . . . 1 . . . . . 1 . . . . . . Fabricator Hacks 3 | . . . . . . . . . 2 . . . . . . . . . 1 . . Network Status 2 | . . . . . . . . . 1 . . . . . . . . . 1 . . Build 1 | . . . . . . . . . 1 . . . . . . . . . . . . Repair Station Hacks 4 | . . . . 2 . . . . 2 . . . . . . . . . . . . Scan Component 3 | . . . . 1 . . . . 2 . . . . . . . . . . . . Repair 1 | . . . . 1 . . . . . . . . . . . . . . . . . Recycling Unit Hacks 1 | . . 1 . . . . . . . . . . . . . . . . . . . Report Inventory 1 | . . 1 . . . . . . . . . . . . . . . . . . . Scanalyzer 3 | . . 3 . . . . . . . . . . . . . . . . . . . Insert Component 1 | . . 1 . . . . . . . . . . . . . . . . . . . Analyze 2 | . . 2 . . . . . . . . . . . . . . . . . . . Garrison Access Hacks 1 | . . . . . . . . . 1 . . . . . . . . . . . . Seal Access 1 | . . . . . . . . . 1 . . . . . . . . . . . . Unauthorized Hacks 7 | . . . . 1 . . . . 1 . . . . . 3 . . 1 1 . . Terminals 6 | . . . . 1 . . . . . . . . . . 3 . . 1 1 . . Botnet 6 | . . . . 1 . . . . . . . . . . 3 . . 1 1 . . Fabricators . | . . . . . . . . . . . . . . . . . . . . . . Repair Stations . | . . . . . . . . . . . . . . . . . . . . . . Recycling Units . | . . . . . . . . . . . . . . . . . . . . . . Scanalyzers . | . . . . . . . . . . . . . . . . . . . . . . Garrison Access 1 | . . . . . . . . . 1 . . . . . . . . . . . . Jam 1 | . . . . . . . . . 1 . . . . . . . . . . . . Data Cores Recovered . | . . . . . . . . . . . . . . . . . . . . . . Used . | . . . . . . . . . . . . . . . . . . . . . . Hacking Detections 38 | . 1 7 1 4 . . . . 9 . . . . 1 5 1 . 3 6 . . Full Trace Events 4 | . . 1 1 . . . . . . . . . . . 1 1 . . . . . Feedback Events 1 | . . . . . . . . . . . . . . . 1 . . . . . . Corruption 1 | . . . . . . . . . . . . . . . 1 . . . . . . Feedback Blocked . | . . . . . . . . . . . . . . . . . . . . . . Robot Schematics Acquired 6 | . . . . . . . 6 . . . . . . . . . . . . . . Robots Built . | . . . . . . . . . . . . . . . . . . . . . . Authchips . | . . . . . . . . . . . . . . . . . . . . . . Time . | . . . . . . . . . . . . . . . . . . . . . . Total Robot Build Rating . | . . . . . . . . . . . . . . . . . . . . . . Part Schematics Acquired 26 | . . 1 . . . . 10 . . . . 15 . . . . . . . . . Parts Built 2 | . . . . . . . . . 2 . . . . . . . . . . . . Authchips . | . . . . . . . . . . . . . . . . . . . . . . Time 58 | . . . . . . . . . 58 . . . . . . . . . . . . Total Part Build Rating 14 | . . . . . . . . . 14 . . . . . . . . . . . . Parts Repaired 1 | . . . . 1 . . . . . . . . . . . . . . . . . Time 53 | . . . . 53 . . . . . . . . . . . . . . . . . Parts Recycled . | . . . . . . . . . . . . . . . . . . . . . . Recycled Matter . | . . . . . . . . . . . . . . . . . . . . . . Retrieved Matter . | . . . . . . . . . . . . . . . . . . . . . . Retrieved Components . | . . . . . . . . . . . . . . . . . . . . . . Parts Scanalyzed 1 | . . 1 . . . . . . . . . . . . . . . . . . . Part Schematics Acquired 1 | . . 1 . . . . . . . . . . . . . . . . . . . Parts Damaged . | . . . . . . . . . . . . . . . . . . . . . . Bothacking | -11 -10 -9 -8 -7 -7 -7 -7 -6 -6 -6 -6 -6 -5 -5 -5 -5 -5 -5 -4 -4 -4 ------------ Run | Yrd Mat Mat Mat Fac Low Low Dat Pro Fac Low Low Zio Pro Fac Ext Cet Arc Hub Fac Upp Upp Used RIF Installer . | . . . . . . . . . . . . . . . . . . . . . . Robots Hacked . | . . . . . . . . . . . . . . . . . . . . . . Non-combat . | . . . . . . . . . . . . . . . . . . . . . . Combat . | . . . . . . . . . . . . . . . . . . . . . . Robot Hacks Applied . | . . . . . . . . . . . . . . . . . . . . . . Relay Couplers Released 3 | . . . . . . . . . 3 . . . . . . . . . . . . Programmers 3 | . . . . . . . . . 3 . . . . . . . . . . . . Fabnet Peak Effective % . | . . . . . . . . . . . . . . . . . . . . . . Robots Rewired 13 | . . . . . . . . 5 . . . . . . 8 . . . . . . Allies Hacked . | . . . . . . . . . . . . . . . . . . . . . . Hacks Repelled . | . . . . . . . . . . . . . . . . . . . . . . Allies | -11 -10 -9 -8 -7 -7 -7 -7 -6 -6 -6 -6 -6 -5 -5 -5 -5 -5 -5 -4 -4 -4 -------- Run | Yrd Mat Mat Mat Fac Low Low Dat Pro Fac Low Low Zio Pro Fac Ext Cet Arc Hub Fac Upp Upp Total Allies 27 | . . . . . . . . 5 . . . . . . 17 5 . . . . . Largest Group 10 | . . . . . . . . 5 . . . . . . 10 8 4 1 . . . Highest-Rated Group 676 | . . . . . . . . 70 . . . . . . 417 676 322 96 . . . Highest-Rated Ally 159 | . . . . . . . . 14 . . . . . . 159 143 96 96 . . . Total Orders . | . . . . . . . . . . . . . . . . . . . . . . Ally Attacks 209 | . . . . . . . . 5 . . . . . . 118 69 16 1 . . . Total Damage 4716 | . . . . . . . . . . . . . . . 2497 1618 554 47 . . . Kills 23 | . . . . . . . . . . . . . . . 10 9 4 . . . . Allies Corrupted . | . . . . . . . . . . . . . . . . . . . . . . Allies Melted . | . . . . . . . . . . . . . . . . . . . . . . Intel | -11 -10 -9 -8 -7 -7 -7 -7 -6 -6 -6 -6 -6 -5 -5 -5 -5 -5 -5 -4 -4 -4 ------- Run | Yrd Mat Mat Mat Fac Low Low Dat Pro Fac Low Low Zio Pro Fac Ext Cet Arc Hub Fac Upp Upp Robot Analysis Total . | . . . . . . . . . . . . . . . . . . . . . . Derelict Logs Recovered 8 | . . . . . 2 . . 1 . . 1 2 2 . . . . . . . . Drone Launches . | . . . . . . . . . . . . . . . . . . . . . . Drone Recoveries . | . . . . . . . . . . . . . . . . . . . . . . Decoded 0b10 Intel 56 | . . . . . . . . . . . . . . 5 20 2 1 5 23 . . Traps 38 | . . . . . . . . . . . . . . 4 18 . . 1 15 . . Emergency Access 10 | . . . . . . . . . . . . . . . . . . 3 7 . . Garrisons 1 | . . . . . . . . . . . . . . . . . . . 1 . . Exits 7 | . . . . . . . . . . . . . . 1 2 2 1 1 . . . Exploration | -11 -10 -9 -8 -7 -7 -7 -7 -6 -6 -6 -6 -6 -5 -5 -5 -5 -5 -5 -4 -4 -4 ------------- Run | Yrd Mat Mat Mat Fac Low Low Dat Pro Fac Low Low Zio Pro Fac Ext Cet Arc Hub Fac Upp Upp Turns Passed 19732 | 72 355 1056 321 1009 979 928 117 1111 2408 714 971 1866 496 371 2718 592 425 250 1441 1498 34 Spaces Moved 9370 | 40 192 514 157 542 574 448 77 594 1210 375 456 924 228 179 1113 200 223 115 548 593 68 Core 489 | 6 . . . . . . . . . . . . . . . . . . . 415 68 Treads 5314 | 34 192 514 157 542 574 448 77 594 280 . 25 . . . 938 200 223 115 401 . . Legs . | . . . . . . . . . . . . . . . . . . . . . . Wheels 3567 | . . . . . . . . . 930 375 431 924 228 179 175 . . . 147 178 . Hover . | . . . . . . . . . . . . . . . . . . . . . . Flight . | . . . . . . . . . . . . . . . . . . . . . . Fastest Speed 50 | 50 160 145 145 153 153 153 153 153 130 160 175 200 200 110 161 160 160 160 160 50 50 Average Speed 176 | 143 160 153 147 153 153 153 153 153 146 169 199 200 200 197 195 232 165 160 206 229 50 Slowest Speed 1750 | 160 160 160 148 153 153 153 153 156 200 175 320 200 200 215 242 240 240 160 320 1750 50 Overloaded Moves . | . . . . . . . . . . . . . . . . . . . . . . Propulsion Burnouts . | . . . . . . . . . . . . . . . . . . . . . . Robots Hopped . | . . . . . . . . . . . . . . . . . . . . . . Cave-ins Triggered . | . . . . . . . . . . . . . . . . . . . . . . Exploration Rate (%) 46 | 4 28 66 17 14 73 67 69 48 25 61 72 81 41 6 87 57 94 16 16 59 15 Regions Visited 21 Branch Regions 14 Pre-discovered Areas 2 | . . . . . . . 1 . . . . 1 . . . . . . . . . Known Exits Taken 16 | . . . . 1 1 1 1 1 1 1 1 1 1 1 1 1 1 1 1 . . Unknown Exits Taken 5 | 1 1 1 1 . . . . . . . . . . . . . . . . 1 . Scrap Searched 18 | . . . . . 1 3 . 1 . 2 3 4 1 . . . . . . 3 . Spaces Dug 23 | . . . . . . 1 . 2 6 . 2 . 5 . . . . 2 2 3 . Terrain Destroyed 610 | . . . . 2 . 45 . 23 55 8 12 . 81 1 41 9 . 170 21 142 . Melee . | . . . . . . . . . . . . . . . . . . . . . . Projectile 187 | . . . . 2 . 2 . 14 27 8 12 . 9 1 41 9 . 10 21 31 . AOE 423 | . . . . . . 43 . 9 28 . . . 72 . . . . 160 . 111 . Terrain Rammed . | . . . . . . . . . . . . . . . . . . . . . . Walls Destroyed . | . . . . . . . . . . . . . . . . . . . . . . Machines Disabled . | . . . . . . . . . . . . . . . . . . . . . . Actions | -11 -10 -9 -8 -7 -7 -7 -7 -6 -6 -6 -6 -6 -5 -5 -5 -5 -5 -5 -4 -4 -4 --------- Run | Yrd Mat Mat Mat Fac Low Low Dat Pro Fac Low Low Zio Pro Fac Ext Cet Arc Hub Fac Upp Upp Total 11498 | 53 216 665 209 694 675 676 76 734 1601 419 481 940 245 194 1471 273 276 147 731 654 68 Wait 1076 | . 1 10 9 86 102 216 . 71 203 10 1 . . . 176 21 43 15 109 3 . Move 9349 | 39 191 513 156 541 573 447 76 593 1209 374 455 923 227 178 1112 199 222 114 547 592 68 Hop . | . . . . . . . . . . . . . . . . . . . . . . Pick Up 106 | 9 7 29 8 16 . 1 . . 13 1 1 3 . 4 . 7 1 . 3 3 . Fast Attach 56 | 3 1 1 1 2 . . . . 16 3 4 4 1 2 5 6 . . 5 2 . Attach 43 | 2 1 5 1 3 . . . 1 11 1 . . . 3 3 1 . . 5 6 . Detach 8 | . . . . 1 . . . . 3 . 1 1 . . 1 . . . 1 . . Swap 75 | . 1 11 2 8 . 3 . 7 10 1 . 3 3 3 3 4 3 1 6 6 . Drop 80 | . 1 24 9 15 . 1 . . 4 1 1 5 . 3 2 7 4 . . 3 . Fire 573 | . 13 72 23 19 . 8 . 29 129 16 18 1 14 1 90 28 3 17 54 38 . Melee . | . . . . . . . . . . . . . . . . . . . . . . Ram 2 | . . . . . . . . . 2 . . . . . . . . . . . . Kick . | . . . . . . . . . . . . . . . . . . . . . . Crush 7 | . . . . 3 . . . . 1 . . . . . 2 . . . 1 . . Escape Stasis . | . . . . . . . . . . . . . . . . . . . . . . Rewire 110 | . . . . . . . . 33 . . . . . . 77 . . . . . . Trap 13 | . . . . . . . . . . 12 . . . . . . . . . 1 . Miscellaneous . | . . . . . . . . . . . . . . . . . . . . . . Route ------- -11/Scrapyard -10/Materials -9/Materials (discovered 2 exits: *Mat / [*Min]) -8/Materials -7/Factory (discovered 3 exits: Sto / *Low x2) -7/Lower Caves -7/Lower Caves (discovered 2 exits: *Fac / *Dat) -7/Data Miner -6/Proximity Caves -6/Factory (discovered 3 exits: *Fac / *Low x2) -6/Lower Caves -6/Lower Caves (discovered 2 exits: *Fac / *Zio) -6/Zion -5/Proximity Caves -5/Factory (discovered 3 exits: Upp x2 / *Ext) -5/Extension (discovered 3 exits: *Fac x2 / *Cet) -5/Cetus (discovered 2 exits: *Fac / *Arc) -5/Archives (discovered 3 exits: *Fac / *Hub x2) -5/Hub_04(d) -4/Factory (discovered 5 exits: *Res x3 / *Upp x2) -4/Upper Caves -4/Upper Caves (discovered 1 exit: War) History --------- Turn | Location | Event 40 | -11/Scrapyard | Discovered new exit (range 16) 73 | -11/Scrapyard | Entered Materials 307 | -10/Materials | Build established: Mutant 396 | -10/Materials | Discovered new exit (range 3) 428 | -10/Materials | Entered another Materials area 428 | -9/Materials | Evolved 2 slots: Propulsion x1, Utility x1 670 | -9/Materials | Discovered new exit (range 13) 1370 | -9/Materials | Discovered new exit (range 16) 1484 | -9/Materials | Entered another Materials area 1484 | -8/Materials | Evolved 2 slots: Propulsion x1, Utility x1 1688 | -8/Materials | Discovered new exit (range 11) 1805 | -8/Materials | Entered Factory 1805 | -7/Factory | Evolved 2 slots: Propulsion x1, Utility x1 1908 | -7/Factory | Repaired Broken Adv. Treads 2494 | -7/Factory | Discovered new exit (range 6) 2523 | -7/Factory | Identified exit to Lower Caves 2681 | -7/Factory | Identified exit to Storage 2814 | -7/Factory | Entered Lower Caves 3255 | -7/Lower Caves | Learned 12 Factory zone layouts 3590 | -7/Lower Caves | Encountered a Warlord checkpoint 3633 | -7/Lower Caves | Discovered new exit (range 11) 3792 | -7/Lower Caves | Identified exit to Lower Caves 3793 | -7/Lower Caves | Entered another Lower Caves area 3807 | -7/Lower Caves | Discovered new exit (range 15) 4216 | -7/Lower Caves | Encountered a Warlord checkpoint 4374 | -7/Lower Caves | Discovered new exit (range 9) 4720 | -7/Lower Caves | Identified exit to Data Miner 4721 | -7/Lower Caves | Entered Data Miner 4721 | -7/Data Miner | Discovered new exit (range 6) 4751 | -7/Data Miner | Met Data Miner 4790 | -7/Data Miner | Learned location of Section 7 (-2) 4790 | -7/Data Miner | Acquired the access code to Warlord's prototype stash 4806 | -7/Data Miner | Received God Mode back door access code from Data Miner 4836 | -7/Data Miner | Identified exit to Proximity Caves 4838 | -7/Data Miner | Entered Proximity Caves 4929 | -6/Proximity Caves | Learned Factory terminal intel 5037 | -6/Proximity Caves | Spotted B-75 Beast 5430 | -6/Proximity Caves | Attracted the attention of an 0b10 checkpoint 5708 | -6/Proximity Caves | Snuck into a huge 0b10 base via the rear entrance 5914 | -6/Proximity Caves | Lost 5 allies 5941 | -6/Proximity Caves | Discovered new exit (range 5) 5946 | -6/Proximity Caves | Identified exit to Factory 5949 | -6/Proximity Caves | Entered Factory 5949 | -6/Factory | Evolved 2 slots: Propulsion x1, Utility x1 5951 | -6/Factory | Loaded intel: 26 terminal locations 6184 | -6/Factory | Fabricated HERF Cannon (x2) 6627 | -6/Factory | Lost 6 parts (4n2u) 7140 | -6/Factory | Build established: Scavenger-Mutant 7426 | -6/Factory | Incoming investigation squad redirected 7440 | -6/Factory | Identified exit to Lower Caves 7716 | -6/Factory | Spotted B-75 Beast 7878 | -6/Factory | Found Hvy. Insulated Plating 8099 | -6/Factory | Discovered new exit (range 9) 8110 | -6/Factory | Identified exit to Factory 8214 | -6/Factory | Lost 3 parts (2n1u) 8357 | -6/Factory | Entered Lower Caves 8485 | -6/Lower Caves | Build established: Mutant 8600 | -6/Lower Caves | Core integrity fell below 50% 8677 | -6/Lower Caves | Attracted the attention of an 0b10 checkpoint 9025 | -6/Lower Caves | Build established: Scavenger-Mutant 9052 | -6/Lower Caves | Discovered new exit (range 12) 9070 | -6/Lower Caves | Identified exit to Lower Caves 9071 | -6/Lower Caves | Entered another Lower Caves area 9094 | -6/Lower Caves | Discovered exit to Factory (range 5) 9309 | -6/Lower Caves | Attracted the attention of an 0b10 checkpoint 9600 | -6/Lower Caves | Learned 8 Factory zone layouts 9997 | -6/Lower Caves | Encountered a Warlord checkpoint 9998 | -6/Lower Caves | Discovered new exit (range 10) 10012 | -6/Lower Caves | Identified exit to Zion 10016 | -6/Lower Caves | Found DCF Scrap (13 items) 10042 | -6/Lower Caves | Entered Zion 10094 | -6/Zion | System corruption cleaned by Quarantine Array 10172 | -6/Zion | Received a visual enhancement algorithm 10255 | -6/Zion | Found GAL Module 10292 | -6/Zion | Discovered new exit (range 15) 10320 | -6/Zion | Identified exit to Proximity Caves 10705 | -6/Zion | Learned Factory emergency access door positions 10743 | -6/Zion | Found Prototype Device 10743 | -6/Zion | Identified Bomb Factory No. 2 10931 | -6/Zion | Given the Hacking Drone Bay 10932 | -6/Zion | Found Prototype Device 11244 | -6/Zion | Visited the Megawrench Repair Shop 11244 | -6/Zion | Megawrench repaired 11 parts 11414 | -6/Zion | Learned location of Extension (-5) 11908 | -6/Zion | Entered Proximity Caves 12336 | -5/Proximity Caves | Spotted B-75 Beast 12404 | -5/Proximity Caves | Entered Factory 12404 | -5/Factory | Evolved 2 slots: Power x1, Utility x1 12404 | -5/Factory | Identified Hacking Drone Bay 12405 | -5/Factory | Identified exit to Upper Caves 12692 | -5/Factory | Identified exit to Extension 12775 | -5/Factory | Entered Extension 13735 | -5/Extension | Spotted B-75 Beast 13758 | -5/Extension | Rescued a captive Derelict 13759 | -5/Extension | Rescued a captive Derelict 14060 | -5/Extension | Rescued A7 14199 | -5/Extension | Rescued a captive Derelict 14200 | -5/Extension | Rescued a captive Derelict 14514 | -5/Extension | Allies destroyed B-75 Beast 14524 | -5/Extension | Spotted B-75 Beast 14558 | -5/Extension | P-70 Sage assimilated allied 56-LU4(h) 14563 | -5/Extension | Lost 6 allies 14564 | -5/Extension | Destroyed B-75 Beast 14603 | -5/Extension | Identified exit to Factory 14817 | -5/Extension | Incoming investigation squad redirected 14954 | -5/Extension | Identified exit to Cetus 14984 | -5/Extension | Discovered exit to Factory (range 10) 14999 | -5/Extension | Lost 3 parts (1p1n1u) 15096 | -5/Extension | Rescued a captive Derelict 15097 | -5/Extension | Rescued a captive Derelict 15183 | -5/Extension | Rescued a captive Derelict 15296 | -5/Extension | Rescued a captive Derelict 15493 | -5/Extension | Entered Cetus 15493 | -5/Cetus | Accompanied by 8 allies (A7) 15498 | -5/Cetus | Acquired a Cetus Manufacturing Module code from A7 15514 | -5/Cetus | Spotted Cetus Guard 15514 | -5/Cetus | Spotted Cetus Guard 15521 | -5/Cetus | Allies destroyed Cetus Guard 15521 | -5/Cetus | Spotted Cetus Guard 15523 | -5/Cetus | Spotted Cetus Guard 15544 | -5/Cetus | Allies destroyed Cetus Guard 15546 | -5/Cetus | Destroyed Cetus Guard 15549 | -5/Cetus | Allies destroyed Cetus Guard 15578 | -5/Cetus | Lost 4 allies 15689 | -5/Cetus | Started Cetus Manufacturing Module 15714 | -5/Cetus | Manufactured an Enhanced Grunt 15724 | -5/Cetus | Incoming investigation squad redirected 15735 | -5/Cetus | Identified exit to Archives 15739 | -5/Cetus | Manufactured an Enhanced Grunt 15764 | -5/Cetus | Manufactured an Enhanced Grunt 15789 | -5/Cetus | Manufactured an Enhanced Grunt 15814 | -5/Cetus | Manufactured an Enhanced Grunt 15908 | -5/Cetus | Spotted Cetus Guard 15909 | -5/Cetus | Spotted Cetus Guard 15913 | -5/Cetus | Allies destroyed Cetus Guard 15913 | -5/Cetus | Spotted Cetus Guard 15916 | -5/Cetus | Spotted Cetus Guard 15918 | -5/Cetus | Allies destroyed Cetus Guard 15935 | -5/Cetus | Destroyed Cetus Guard 15940 | -5/Cetus | Allies destroyed Cetus Guard 15960 | -5/Cetus | Lost 3 allies 15965 | -5/Cetus | Met Revision 17 16085 | -5/Cetus | Entered Archives 16085 | -5/Archives | Accompanied by 5 allies (A7) 16149 | -5/Archives | Discovered new exit (range 15) 16162 | -5/Archives | Lost 3 allies 16241 | -5/Archives | Unable to access archive contents 16260 | -5/Archives | Unable to access archive contents 16276 | -5/Archives | Unable to access archive contents 16294 | -5/Archives | Unable to access archive contents 16299 | -5/Archives | Discovered new exit (range 15) 16488 | -5/Archives | Identified exit to Hub_04(d) 16510 | -5/Archives | Entered Hub_04(d) 16510 | -5/Hub_04(d) | Accompanied by 1 ally 16753 | -5/Hub_04(d) | Network Hub disabled 16758 | -5/Hub_04(d) | System corruption reached 10% 16760 | -5/Hub_04(d) | Entered Factory 16760 | -4/Factory | Evolved 2 slots: Utility x1, Weapon x1 16962 | -4/Factory | Identified exit to Upper Caves 16991 | -4/Factory | Discovered new exit (range 15) 17029 | -4/Factory | Identified exit to Research 17050 | -4/Factory | Build established: Scavenger-Tank 17276 | -4/Factory | Discovered exit to Research (range 11) 17677 | -4/Factory | Discovered exit to Research (range 11) 18201 | -4/Factory | Entered Upper Caves 18259 | -4/Upper Caves | Spotted B-86 Titan 18519 | -4/Upper Caves | System corruption reached 10% 18668 | -4/Upper Caves | Destroyed B-86 Titan 18692 | -4/Upper Caves | Lost 12 parts (2p4n2u4w) 18964 | -4/Upper Caves | Build established: Scavenger-Gunner 19476 | -4/Upper Caves | Attracted the attention of an 0b10 checkpoint 19505 | -4/Upper Caves | Released all parts (5) 19530 | -4/Upper Caves | Core integrity fell below 50% 19534 | -4/Upper Caves | Lost 4 parts (1u3w) 19695 | -4/Upper Caves | Discovered new exit (range 9) 19699 | -4/Upper Caves | Entered another Upper Caves area 19700 | -4/Upper Caves | Identified exit to Warlord 19707 | -4/Upper Caves | Core integrity fell below 20% 19707 | -4/Upper Caves | Spotted B-86 Titan 19733 | -4/Upper Caves | Destroyed by P-70 Sage with Tesla Rifle Last Messages --------------- 19582_ Acquired 54 matter. 19584_ Acquired Hvy. Phase Cannon. 19586_ Acquired Unknown Device. 19586_ Identified EM Disruption Field. 19587_ Dropped EM Disruption Field. 19592_ Installed Fire Trap. 19594_ M-30 Cleanser reprogrammed Fire Trap. 19596_ M-30 Cleanser extracts Fire Trap. 19618_ KT> UNIFOKTMUG3ZF2K,3UAKHX=MZ0VPZKT/I 19659_ Acquired 46 matter. 19695_ EXIT=FOUND LOCATION=UNKNOWN GOAL=ESCAPE Loading 1 Warlord entrance... 19711_ Core Analyzer destroyed. 19711_ Critical hit (Blast). 19714_ Slug penetrates Wall. 19718_ RNH9DJ1:VZP4DFQY:MC>DOS T> 19731_ G-73 Enforcer: "INCOMING HOSTILES. DEFEND SHIPMENT RENDEZVOUS PERIMETER." Map ----- +----------------------------------------------------+ | ?????????????????????????????????????????????????? | | ?????????????????????????????????????????????????? | | ?????????????????????????????????????????????????? | | ?????????????????????????????????????????????????? | | ????????????????????????????????????????????????## | | ??????????????????????????????????????????????### | | ?????????????????????????????????????????????## | | ?????????????????????????????????????###?????# | | ????????????????????????????????????## #??????# | | ????????????????????????????????????# #???????# | | ????????????????????????????????????# ##??????# | | ????????????????????????????????????# ##?????# | | ????????????????????????????????????## ##??### | | ?????????#??????????????????????????## #?## % | | ?????????# ????????????#####???????## ##?#" | | ??????????# ???##??????? ??????## #?# # | | ???????????? ?## ??????? #?????## ##### | | ????????????? # ?????? #????## ## | | ?????????????? ??????# #???## ### | | ??????????????? ?????# #??## #?## ## | | ???????????????? $????## #?## ##??## #####? | | ?????????????????# ???# ### p ##????## ##????? | | ?????????????????# #### ## #??????# #?????? | | ?????????????????# p #?????? ?????? | | ?????????????????######## ##????? ##????? | | ????????????????????????#@ ####????? #?????? | | ??????????????????????? #??????? #?????? | | ????????????????????? ##?????? #?????? | | ????????????????????#########?????? #?????? | | ???????????????????????????????????? ?????? | | ???????????????????????????????????? ?????? | | ???????????????????????????????????? ?????? | | ?????????????????????????????????????? ?????? | | ????????????????????????????????????????# ??????? | | ?????????????????????????????????????????????????? | | ?????????????????????????????????????????????????? | | ?????????????????????????????????????????????????? | | ?????????????????????????????????????????????????? | | ?????????????????????????????????????????????????? | | ?????????????????????????????????????????????????? | | ?????????????????????????????????????????????????? | | ?????????????????????????????????????????????????? | | ?????????????????????????????????????????????????? | | ?????????????????????????????????????????????????? | | ?????????????????????????????????????????????????? | | ?????????????????????????????????????????????????? | | ?????????????????????????????????????????????????? | | ?????????????????????????????????????????????????? | | ?????????????????????????????????????????????????? | | ?????????????????????????????????????????????????? | +----------------------------------------------------+ Best States ------------- Heat Dissipation 75 Energy Generation 45 Energy Capacity 600 Matter Stores 300 Matter Capacity 300 Sight Range 16 Robot Scan Range 18 Terrain Scan Density 10 Additional Mass Support 12 Armor Coverage 675 Resistance: KI 30 Resistance: EM 30 Evasion (%) 50 Core Analysis 6 Armor Integrity Analysis 30 Recoil Reduction 6 Particle Charging 20 Item Schematics ----------------- Adv. Treads | -9/Materials | Scanalyzed Combat Drone Bay | -7/Data Miner | Free Lgt. Regenerative Plating | -7/Data Miner | Free Cld. Cesium-ion Thruster | -7/Data Miner | Free Exp. Targeting Computer | -7/Data Miner | Free Cld. Plasma Cannon | -7/Data Miner | Free Gyrokinetic Inverter | -7/Data Miner | Free Imp. Kinecellerator | -7/Data Miner | Free Wave Gun | -7/Data Miner | Free Lgt. Antimatter Reactor | -7/Data Miner | Free Hvy. Siege Treads | -7/Data Miner | Free Phase Cannon | -6/Zion | Archive Imp. Recalibrator | -6/Zion | Archive Hvy. Plasma Cannon | -6/Zion | Archive Antigrav System | -6/Zion | Archive Stasis Canceller | -6/Zion | Archive Field Propulsion Drive | -6/Zion | Archive Lyr. Medium Armor Plating | -6/Zion | Archive Adv. Focal Shield | -6/Zion | Archive Point Defense Array | -6/Zion | Archive Flexi-carbon Leg | -6/Zion | Archive Recoil Nullifier | -6/Zion | Archive Neutrino Core | -6/Zion | Archive Imp. Shock Absorption System | -6/Zion | Archive Hyp. Gauss Rifle | -6/Zion | Archive HERF Cannon | -6/Zion | Archive Robot Schematics ------------------ A-15 Conveyor | -7/Data Miner | Free B-48 Gladiator | -7/Data Miner | Free H-66 Slayer | -7/Data Miner | Free R-10 Processor | -7/Data Miner | Free S-27 Virus | -7/Data Miner | Free L-41 Fighter | -7/Data Miner | Free Fabricated ------------ HERF Cannon | x2 | -6/Factory | Preloaded Alien Tech Used ----------------- None Achievements -------------- Decoder Ring Challenges ------------ None Game ------ Seed BombSpreadRay Manual? 0 Play Time 02:11:52 Cumulative 122.9 hours Start 2025.01.11 @ 19:27:07 End 2025.01.11 @ 22:19:33 Sessions 1 Manual Loads 0 Difficulty Rogue Special Mode None Game No. 110 Rogue 110 Adventurer 0 Explorer 0 Win Type - Total 3 Types 1/0/1/1/0/0/0/0/0 Lore% 64 Gallery% 54 Achievement% 51 Wizard Run 0 Options --------- Layout 1 ASCII 0 Keyboard 1 Movement Arrows Keybinds 0 Fullscreen 1 Font 24/Smallcaps Map View 50x35 Zoom Use 0% Tactical HUD 1 Map Filters NONE Filters NONE Steam 1 RUN: b256719c-bd4a-4257-ab26-11a2d6899f52